fUST/lending_fUST_20240212
["ID","MTS","AMOUNT","RATE_DAILY","PERIOD"]
[313758709,1707683846852,154.8915759,0.00017807,3]
[313758710,1707683866842,154.8915759,0.00017807,3]
[313758711,1707683884962,154.8915759,0.00017807,3]
[313758712,1707683901023,154.8915759,0.00017807,3]
[313758713,1707683918876,154.8915759,0.00017807,3]
[313758714,1707683932882,154.8915759,0.00017807,3]
[313758715,1707683948893,154.8915759,0.00017807,3]
[313758716,1707683966884,154.8915759,0.00017807,3]
[313758717,1707683984884,154.8915759,0.00017807,3]
[313758718,1707684007013,154.8915759,0.00017807,3]
[313758720,1707684028900,154.8915759,0.00017807,3]
[313758721,1707684046904,154.8915759,0.00017807,3]
[313758722,1707684068901,154.8915759,0.00017807,3]
[313758723,1707684084909,154.8915759,0.00017807,3]
[313758724,1707684104904,154.8915759,0.00017807,3]
[313758725,1707684120932,154.8915759,0.00017807,3]
[313758726,1707684140909,154.8915759,0.00017807,3]
[313758727,1707684160912,154.8915759,0.00017807,3]
[313758728,1707684178910,154.8915759,0.00017807,3]
[313758729,1707684194907,154.8915759,0.00017807,3]
[313758731,1707684214594,154.8915759,0.00017807,3]
[313758732,1707684234917,154.8915759,0.00017807,3]
[313758733,1707684250970,154.8915759,0.00017807,3]
[313758734,1707684272981,154.8915759,0.00017807,3]
[313758735,1707684289022,154.8915759,0.00017807,3]
[313758736,1707684308982,154.8915759,0.00017807,3]
[313758737,1707684326983,154.8915759,0.00017807,3]
[313758738,1707684346983,154.8915759,0.00017807,3]
[313758739,1707684364985,154.8915759,0.00017808,3]
[313758917,1707684638862,-1018.94351989,0.00018857,2]
[313758918,1707684638872,-1746.80219385,0.00018858,2]
[313758919,1707684638882,-154.8915759,0.00018859,2]
[313758920,1707684638892,-3746.44530431,0.00018859,2]
[313758921,1707684638901,-6806.55216034,0.00018861,2]
[313758922,1707684638910,-150.0,0.000189,2]
[313758923,1707684638919,-166.9773972,0.00019688,2]
[313758924,1707684638929,-155.12394705,0.00019786,2]
[313758925,1707684638938,-9151.88,0.00019787,2]
[313758926,1707684638947,-500.0,0.00019787,2]
[313758928,1707684638956,-500.0,0.00019787,2]
[313758930,1707684638965,-331.26263503,0.00019788,2]
[313758932,1707684638975,-536.45719266,0.00019788,2]
[313758933,1707684638984,-500.0,0.00019788,2]
[313758934,1707684638993,-500.0,0.00019788,2]
[313758935,1707684639002,-500.0,0.00019788,2]
[313758936,1707684639011,-570.58376441,0.00019788,2]
[313758937,1707684639020,-500.0,0.00019788,2]
[313758938,1707684639029,-500.0,0.00019788,2]
[313758939,1707684639038,-500.0,0.00019788,2]
[313758940,1707684639047,-500.0,0.00019788,2]
[313758941,1707684639056,-557.49671277,0.00019788,2]
[313758942,1707684639065,-500.0,0.00019788,2]
[313758943,1707684639074,-500.0,0.00019788,2]
[313758944,1707684639083,-500.0,0.00019788,2]
[313758945,1707684639093,-500.0,0.00019788,2]
[313758946,1707684639103,-500.0,0.00019788,2]
[313758947,1707684639112,-500.0,0.00019788,2]
[313758948,1707684639122,-527.26078061,0.00019788,2]
[313758949,1707684639131,-500.0,0.00019788,2]
[313758950,1707684639140,-211.67890382,0.00019788,2]
[313758951,1707684639150,-500.0,0.00019788,2]
[313758952,1707684639158,-500.0,0.00019788,2]
[313758953,1707684639167,-2525.7,0.00019788,2]
[313758954,1707684639176,-500.0,0.00019788,2]
[313758955,1707684639186,-500.0,0.00019788,2]
[313758956,1707684639195,-500.0,0.00019788,2]
[313758957,1707684639204,-3435.29,0.00019788,2]
[313758958,1707684639212,-500.0,0.00019788,2]
[313758959,1707684639222,-500.0,0.00019788,2]
[313758960,1707684639231,-500.0,0.00019788,2]
[313758961,1707684639240,-500.0,0.00019788,2]
[313758962,1707684639250,-500.0,0.00019788,2]
[313758963,1707684639259,-500.0,0.00019788,2]
[313758964,1707684639269,-504.38211176,0.00019788,2]
[313758965,1707684639278,-500.0,0.00019788,2]
[313758966,1707684639288,-577.6360873,0.00019788,2]
[313758967,1707684639297,-500.0,0.00019788,2]
[313758968,1707684639307,-500.0,0.00019788,2]
[313758969,1707684639316,-500.0,0.00019788,2]
[313758970,1707684639325,-534.99991399,0.00019788,2]
[313758971,1707684639334,-500.0,0.00019788,2]
[313758972,1707684639344,-500.0,0.00019788,2]
[313758973,1707684639353,-500.0,0.00019788,2]
[313758974,1707684639362,-500.0,0.00019788,2]
[313758975,1707684639371,-300.0,0.00019788,2]
[313758976,1707684639380,-15784.87999188,0.00019788,2]
[313758977,1707684639390,-154.95351295,0.00019788,2]
[313758979,1707684639399,-323.84552651,0.00019788,2]
[313758981,1707684639407,-516.19063554,0.00019789,2]
[313758983,1707684639417,-500.0,0.00019789,2]
[313758985,1707684639426,-500.0,0.00019789,2]
[313758987,1707684639435,-611.78252147,0.00019789,2]
[313758989,1707684639444,-580.24346455,0.00019789,2]
[313758991,1707684639454,-500.0,0.00019789,2]
[313758993,1707684639463,-500.0,0.00019789,2]
[313758995,1707684639473,-501.55219049,0.00019789,2]
[313758997,1707684639482,-576.45478422,0.00019789,2]
[313758999,1707684639491,-500.0,0.00019789,2]
[313759001,1707684639500,-573.31335451,0.00019789,2]
[313759002,1707684639509,-500.0,0.00019789,2]
[313759003,1707684639518,-500.0,0.00019789,2]
[313759004,1707684639527,-500.0,0.00019789,2]
[313759006,1707684639536,-500.0,0.00019789,2]
[313759008,1707684639545,-500.0,0.00019789,2]
[313759010,1707684639554,-500.0,0.00019789,2]
[313759012,1707684639564,-500.0,0.00019789,2]
[313759014,1707684639572,-500.0,0.00019789,2]
[313759016,1707684639582,-532.75281752,0.00019789,2]
[313759018,1707684639592,-500.04,0.00019789,2]
[313759020,1707684639601,-515.73686434,0.00019789,2]
[313759022,1707684639610,-602.13543744,0.00019789,2]
[313759024,1707684639620,-500.0,0.00019789,2]
[313759026,1707684639629,-551.48826927,0.00019789,2]
[313759028,1707684639638,-236.4296835,0.00019789,2]
[313759030,1707684639651,-333.7803165,0.00019789,2]
[313759032,1707684639663,-500.0,0.00019789,2]
[313759034,1707684639672,-500.0,0.00019789,2]
[313759036,1707684639681,-514.45779837,0.00019789,2]
[313759038,1707684639691,-1672.4,0.00019789,2]
[313759040,1707684639700,-500.0,0.00019789,2]
[313759042,1707684639710,-500.0,0.00019789,2]
[313759044,1707684639720,-2513.0,0.00019789,2]
[313759046,1707684639729,-577.7,0.00019789,2]
[313759048,1707684639739,-500.0,0.00019789,2]
[313759050,1707684639748,-563.49,0.00019789,2]
[313759052,1707684639758,-619.28904538,0.00019789,2]
[313759054,1707684639767,-500.0,0.00019789,2]
[313759056,1707684639775,-500.0,0.00019789,2]
[313759058,1707684639784,-500.0,0.00019789,2]
[313759059,1707684639793,-500.0,0.00019789,2]
[313759061,1707684639802,-500.0,0.00019789,2]
[313759062,1707684639811,-500.0,0.00019789,2]
[313759063,1707684639820,-500.0,0.00019789,2]
[313759064,1707684639830,-500.0,0.00019789,2]
[313759065,1707684639840,-500.0,0.00019789,2]
[313759066,1707684639848,-166.9773972,0.00019789,2]
[313759067,1707684639858,-518.83544619,0.00019789,2]
[313759068,1707684639867,-500.0,0.00019789,2]
[313759069,1707684639877,-500.0,0.00019789,2]
[313759070,1707684639886,-500.0,0.00019789,2]
[313759071,1707684640038,-795.55,0.00019789,2]
[313759072,1707684640048,-500.0,0.00019789,2]
[313759073,1707684640057,-500.0,0.00019789,2]
[313759074,1707684640067,-500.0,0.00019789,2]
[313759075,1707684640076,-500.0,0.00019789,2]
[313759076,1707684640085,-500.0,0.00019789,2]
[313759077,1707684640094,-500.0,0.00019789,2]
[313759078,1707684640103,-500.0,0.00019789,2]
[313759079,1707684640113,-500.0,0.00019789,2]
[313759080,1707684640122,-503.71813209,0.00019789,2]
[313759081,1707684640131,-500.0,0.00019789,2]
[313759082,1707684640140,-500.0,0.00019789,2]
[313759083,1707684640150,-19135.13450941,0.0001979,2]
[313759084,1707684640159,-2160.73939454,0.0001979,2]
[313759085,1707684640168,-1037.13128569,0.0001989,2]
[313759086,1707684640177,-166.9773972,0.0001989,2]
[313759087,1707684640186,-276000.0,0.00019894,2]
[313759088,1707684640195,-44444.0,0.00019895,2]
[313759089,1707684640203,-155.01240099,0.0001999,2]
[313759090,1707684640213,-155.02790502,0.0001999,2]
[313759091,1707684640221,-155.01240099,0.0001999,2]
[313759092,1707684640231,-155.01860223,0.0001999,2]
[313759093,1707684640240,-609.6684753,0.0001999,2]
[313759094,1707684640249,-329.15171749,0.0001999,2]
[313759095,1707684640258,-820.4174629,0.0001999,2]
[313759096,1707684640267,-155.11786024,0.0001999,2]
[313759097,1707684640276,-214.05113646,0.0001999,2]
[313759098,1707684640285,-330.4947575,0.0001999,2]
[313759099,1707684640294,-307.49195632,0.0001999,2]
[313759100,1707684640303,-175.69575442,0.0001999,2]
[313759101,1707684640312,-155.01705188,0.0001999,2]
[313759102,1707684640323,-155.21861604,0.0001999,2]
[313759103,1707684640335,-155.01860223,0.0001999,2]
[313759104,1707684640344,-1297.15038027,0.0001999,2]
[313759105,1707684640353,-906.16625216,0.0001999,2]
[313759106,1707684640364,-199.73989634,0.0001999,2]
[313759108,1707684640374,-155.01240099,0.0001999,2]
[313759109,1707684640384,-523.57423326,0.0001999,2]
[313759111,1707684640393,-155.34708733,0.0001999,2]
[313759113,1707684640401,-155.66315952,0.0001999,2]
[313759114,1707684640410,-155.01240099,0.0001999,2]
[313759115,1707684640419,-640.35816557,0.0001999,2]
[313759116,1707684640428,-226.91515471,0.0001999,2]
[313759117,1707684640437,-20955.05859825,0.0001999,2]
[313759118,1707684640447,-155.20423969,0.0001999,2]
[313759119,1707684640455,-4495.12556647,0.00019991,2]
[313759120,1707684640464,-161.4945607,0.00019991,2]
[313759121,1707684640473,-155.21391894,0.00019991,2]
[313759123,1707684640482,-570.21,0.00019991,2]
[313759124,1707684640491,-570.21,0.00019991,2]
[313759126,1707684640501,-151.0,0.00019991,2]
[313759128,1707684640510,-179.25607649,0.00019992,2]
[313759130,1707684640518,-20929.45735728,0.00019992,2]
[313759131,1707684640528,-155.0480649,0.00019992,2]
[313759132,1707684640538,-1513.15613917,0.00019992,2]
[313759133,1707684640547,-500.0,0.00019992,2]
[313759134,1707684640556,-500.0,0.00019992,2]
[313759135,1707684640565,-500.0,0.00019992,2]
[313759136,1707684640574,-500.0,0.00019992,2]
[313759137,1707684640583,-500.0,0.00019992,2]
[313759138,1707684640592,-500.98908554,0.00019992,2]
[313759139,1707684640601,-500.0,0.00019992,2]
[313759140,1707684640610,-500.0,0.00019992,2]
[313759141,1707684640620,-505.11961885,0.00019992,2]
[313759142,1707684640629,-501.3312657,0.00019992,2]
[313759143,1707684640638,-204.73087254,0.00019992,2]
[313759144,1707684640647,-520.41872211,0.00019992,2]
[313759145,1707684640658,-500.0,0.00019992,2]
[313759146,1707684640668,-516.27364509,0.00019992,2]
[313759147,1707684640678,-613.8002538,0.00019992,2]
[313759148,1707684640687,-500.0,0.00019992,2]
[313759149,1707684640696,-406.06525703,0.00019992,2]
[313759150,1707684640706,-643.56535792,0.00019992,2]
[313759151,1707684640715,-500.0,0.00019992,2]
[313759152,1707684640724,-500.0,0.00019992,2]
[313759153,1707684640733,-500.0,0.00019992,2]
[313759154,1707684640742,-500.0,0.00019992,2]
[313759155,1707684640752,-500.63095173,0.00019992,2]
[313759156,1707684640761,-500.0,0.00019992,2]
[313759157,1707684640771,-500.0,0.00019992,2]
[313759158,1707684640780,-500.0,0.00019992,2]
[313759159,1707684640789,-500.0,0.00019992,2]
[313759160,1707684640798,-500.0,0.00019992,2]
[313759161,1707684640807,-500.0,0.00019992,2]
[313759162,1707684640816,-500.0,0.00019992,2]
[313759163,1707684640825,-320.53987334,0.00019992,2]
[313759164,1707684640835,-500.0,0.00019992,2]
[313759165,1707684640845,-500.0,0.00019992,2]
[313759166,1707684640853,-500.0,0.00019992,2]
[313759167,1707684640863,-500.0,0.00019992,2]
[313759168,1707684640872,-500.0,0.00019992,2]
[313759169,1707684640882,-500.0,0.00019992,2]
[313759170,1707684640891,-471.36051482,0.00019992,2]
[313759171,1707684640900,-500.0,0.00019992,2]
[313759172,1707684640909,-150.0,0.00019992,2]
[313759173,1707684640918,-500.0,0.00019992,2]
[313759174,1707684640927,-513.45763442,0.00019992,2]
[313759175,1707684640937,-578.93559826,0.00019992,2]
[313759176,1707684640946,-508.31988023,0.00019992,2]
[313759177,1707684640955,-508.19113716,0.00019992,2]
[313759178,1707684640964,-500.0,0.00019992,2]
[313759179,1707684640973,-500.0,0.00019992,2]
[313759180,1707684640982,-464.77631913,0.00019992,2]
[313759181,1707684640992,-500.0,0.00019992,2]
[313759182,1707684641001,-501.17124774,0.00019992,2]
[313759183,1707684641010,-500.0,0.00019992,2]
[313759184,1707684641019,-223.32038175,0.00019992,2]
[313759185,1707684641029,-500.0,0.00019992,2]
[313759186,1707684641039,-500.0,0.00019992,2]
[313759187,1707684641048,-649.98513231,0.00019992,2]
[313759188,1707684641058,-551.83004224,0.00019992,2]
[313759189,1707684641067,-500.0,0.00019992,2]
[313759190,1707684641076,-500.0,0.00019992,2]
[313759191,1707684641085,-512.73480022,0.00019992,2]
[313759192,1707684641095,-597.06,0.00019992,2]
[313759193,1707684641104,-500.77360449,0.00019992,2]
[313759194,1707684641113,-500.0,0.00019992,2]
[313759195,1707684641122,-500.0,0.00019992,2]
[313759196,1707684641131,-500.0,0.00019992,2]
[313759197,1707684641140,-500.0,0.00019992,2]
[313759198,1707684641149,-500.0,0.00019992,2]
[313759199,1707684641158,-500.0,0.00019992,2]
[313759200,1707684641167,-500.0,0.00019992,2]
[313759201,1707684641176,-501.94848903,0.00019992,2]
[313759202,1707684641185,-389.6667464,0.00019992,2]
[313759203,1707684641194,-500.0,0.00019992,2]
[313759204,1707684641203,-500.0,0.00019992,2]
[313759205,1707684641212,-523.97886913,0.00019992,2]
[313759206,1707684641220,-500.0,0.00019992,2]
[313759207,1707684641229,-392.85357446,0.00019992,2]
[313759208,1707684641239,-520.95273692,0.00019992,2]
[313759209,1707684641248,-500.0,0.00019992,2]
[313759210,1707684641258,-617.21818635,0.00019992,2]
[313759211,1707684641267,-613.23070645,0.00019992,2]
[313759212,1707684641276,-500.0,0.00019992,2]
[313759213,1707684641286,-204.42473839,0.00019992,2]
[313759214,1707684641295,-500.33428096,0.00019992,2]
[313759215,1707684641304,-519.28865017,0.00019992,2]
[313759216,1707684641313,-500.0,0.00019992,2]
[313759217,1707684641322,-600.81660012,0.00019992,2]
[313759218,1707684641331,-500.0,0.00019992,2]
[313759219,1707684641341,-513.10645208,0.00019992,2]
[313759220,1707684641351,-500.0,0.00019992,2]
[313759221,1707684641361,-500.0,0.00019992,2]
[313759222,1707684641370,-500.0,0.00019992,2]
[313759223,1707684641380,-500.0,0.00019992,2]
[313759224,1707684641389,-500.0,0.00019992,2]
[313759225,1707684641399,-500.0,0.00019992,2]
[313759226,1707684641409,-500.0,0.00019992,2]
[313759227,1707684641419,-500.0,0.00019992,2]
[313759228,1707684641428,-501.14671207,0.00019992,2]
[313759229,1707684641438,-500.0,0.00019992,2]
[313759230,1707684641449,-500.0,0.00019992,2]
[313759231,1707684641459,-500.0,0.00019992,2]
[313759232,1707684641469,-500.0,0.00019992,2]
[313759233,1707684641478,-500.0,0.00019992,2]
[313759234,1707684641489,-500.0,0.00019992,2]
[313759235,1707684641500,-500.0,0.00019992,2]
[313759236,1707684641510,-500.0,0.00019992,2]
[313759237,1707684641520,-500.0,0.00019992,2]
[313759238,1707684641531,-500.0,0.00019992,2]
[313759239,1707684641540,-500.0,0.00019992,2]
[313759240,1707684641549,-500.0,0.00019992,2]
[313759241,1707684641558,-500.0,0.00019992,2]
[313759242,1707684641567,-500.0,0.00019992,2]
[313759243,1707684641576,-500.0,0.00019992,2]
[313759244,1707684641585,-500.0,0.00019992,2]
[313759245,1707684641595,-501.78539317,0.00019992,2]
[313759246,1707684641604,-500.0,0.00019992,2]
[313759247,1707684641613,-607.77340214,0.00019992,2]
[313759248,1707684641622,-500.0,0.00019992,2]
[313759249,1707684641632,-500.0,0.00019992,2]
[313759250,1707684641642,-500.0,0.00019992,2]
[313759251,1707684641651,-500.0,0.00019992,2]
[313759252,1707684641663,-500.0,0.00019992,2]
[313759253,1707684641673,-500.0,0.00019992,2]
[313759254,1707684641682,-500.0,0.00019992,2]
[313759255,1707684641691,-500.0,0.00019992,2]
[313759256,1707684641700,-500.0,0.00019992,2]
[313759257,1707684641710,-500.0,0.00019992,2]
[313759258,1707684641719,-502.17278728,0.00019992,2]
[313759259,1707684641728,-500.0,0.00019992,2]
[313759260,1707684641738,-500.0,0.00019992,2]
[313759261,1707684641747,-500.0,0.00019992,2]
[313759262,1707684641757,-500.0,0.00019992,2]
[313759263,1707684641766,-500.0,0.00019992,2]
[313759264,1707684641775,-500.0,0.00019992,2]
[313759265,1707684641784,-500.0,0.00019992,2]
[313759266,1707684641793,-500.0,0.00019992,2]
[313759267,1707684641802,-500.0,0.00019992,2]
[313759268,1707684641811,-500.0,0.00019992,2]
[313759269,1707684641820,-500.0,0.00019992,2]
[313759270,1707684641829,-501.29532055,0.00019992,2]
[313759271,1707684641838,-500.0,0.00019992,2]
[313759272,1707684641848,-508.32543614,0.00019992,2]
[313759273,1707684641857,-500.0,0.00019992,2]
[313759274,1707684641866,-500.0,0.00019992,2]
[313759275,1707684641876,-500.0,0.00019992,2]
[313759276,1707684641885,-500.0,0.00019992,2]
[313759277,1707684641894,-500.0,0.00019992,2]
[313759278,1707684641903,-500.0,0.00019992,2]
[313759279,1707684641912,-548.14148699,0.00019992,2]
[313759280,1707684641922,-642.90517316,0.00019992,2]
[313759281,1707684641931,-202.66450243,0.00019992,2]
[313759282,1707684641941,-302.35202583,0.00019992,2]
[313759283,1707684641950,-352.74438283,0.00019992,2]
[313759284,1707684641959,-500.0,0.00019992,2]
[313759285,1707684641969,-500.0,0.00019992,2]
[313759286,1707684641979,-500.0,0.00019992,2]
[313759287,1707684641989,-500.0,0.00019992,2]
[313759288,1707684641999,-500.0,0.00019992,2]
[313759289,1707684642008,-500.0,0.00019992,2]
[313759290,1707684642017,-500.0,0.00019992,2]
[313759291,1707684642027,-500.0,0.00019992,2]
[313759292,1707684642037,-500.0,0.00019992,2]
[313759293,1707684642047,-500.0,0.00019992,2]
[313759294,1707684642056,-541.35295517,0.00019992,2]
[313759295,1707684642066,-154.20793716,0.00019992,2]
[313759296,1707684642075,-151.0,0.00019992,2]
[313759297,1707684642085,-151.0,0.00019992,2]
[313759298,1707684642094,-500.0,0.00019992,2]
[313759299,1707684642103,-500.0,0.00019992,2]
[313759300,1707684642112,-500.0,0.00019992,2]
[313759301,1707684642121,-215.17744921,0.00019992,2]
[313759302,1707684642130,-206.81807037,0.00019992,2]
[313759303,1707684642139,-500.0,0.00019992,2]
[313759304,1707684642149,-500.0,0.00019992,2]
[313759305,1707684642158,-500.0,0.00019992,2]
[313759306,1707684642167,-500.0,0.00019992,2]
[313759307,1707684642176,-500.0,0.00019992,2]
[313759308,1707684642185,-500.0,0.00019992,2]
[313759309,1707684642194,-7262.08,0.00019992,2]
[313759310,1707684642203,-500.0,0.00019992,2]
[313759311,1707684642212,-234.739951,0.00019992,2]
[313759312,1707684642221,-234.739951,0.00019992,2]
[313759313,1707684642231,-500.0,0.00019992,2]
[313759314,1707684642241,-234.739951,0.00019992,2]
[313759315,1707684642250,-234.739951,0.00019992,2]
[313759316,1707684642259,-500.0,0.00019992,2]
[313759317,1707684642269,-612.77787055,0.00019992,2]
[313759318,1707684642278,-234.739951,0.00019992,2]
[313759319,1707684642287,-234.739951,0.00019992,2]
[313759320,1707684642296,-500.0,0.00019992,2]
[313759321,1707684642305,-234.739951,0.00019992,2]
[313759322,1707684642315,-234.739951,0.00019992,2]
[313759323,1707684642325,-500.0,0.00019992,2]
[313759324,1707684642334,-500.0,0.00019992,2]
[313759325,1707684642345,-500.0,0.00019992,2]
[313759326,1707684642353,-500.0,0.00019992,2]
[313759327,1707684642362,-500.0,0.00019992,2]
[313759328,1707684642371,-500.0,0.00019992,2]
[313759329,1707684642380,-189.68873813,0.00019992,2]
[313759330,1707684642389,-500.0,0.00019992,2]
[313759331,1707684642398,-208.80690079,0.00019992,2]
[313759332,1707684642409,-500.0,0.00019992,2]
[313759333,1707684642418,-500.0,0.00019992,2]
[313759334,1707684642428,-2572.12,0.00019992,2]
[313759335,1707684642439,-500.0,0.00019992,2]
[313759336,1707684642448,-500.0,0.00019992,2]
[313759337,1707684642457,-500.0,0.00019992,2]
[313759338,1707684642466,-500.0,0.00019992,2]
[313759339,1707684642476,-500.0,0.00019992,2]
[313759340,1707684642578,-500.0,0.00019992,2]
[313759341,1707684642589,-697.4,0.00019992,2]
[313759342,1707684642598,-500.0,0.00019992,2]
[313759343,1707684642607,-500.0,0.00019992,2]
[313759344,1707684642617,-2697.29,0.00019992,2]
[313759345,1707684642626,-209.34609352,0.00019992,2]
[313759347,1707684642635,-500.0,0.00019992,2]
[313759348,1707684642644,-606.23836459,0.00019992,2]
[313759349,1707684642653,-500.0,0.00019992,2]
[313759350,1707684642666,-800.05,0.00019992,2]
[313759351,1707684642675,-500.0,0.00019992,2]
[313759352,1707684642684,-500.0,0.00019992,2]
[313759353,1707684642693,-1000.0,0.00019992,2]
[313759354,1707684642702,-500.0,0.00019992,2]
[313759355,1707684642712,-500.0,0.00019992,2]
[313759356,1707684642722,-500.0,0.00019992,2]
[313759357,1707684642732,-500.0,0.00019992,2]
[313759358,1707684642742,-501.04849846,0.00019992,2]
[313759359,1707684642752,-500.0,0.00019992,2]
[313759360,1707684642762,-500.0,0.00019992,2]
[313759361,1707684642771,-589.46948546,0.00019992,2]
[313759362,1707684642781,-500.0,0.00019992,2]
[313759363,1707684642790,-500.0,0.00019992,2]
[313759364,1707684642799,-500.0,0.00019992,2]
[313759365,1707684642808,-500.0,0.00019992,2]
[313759366,1707684642817,-500.0,0.00019992,2]
[313759367,1707684642826,-500.0,0.00019992,2]
[313759368,1707684642835,-155.54001232,0.00019993,2]
[313759369,1707684642844,-1947.73820568,0.00019993,2]
[313759370,1707684642854,-3755.69529023,0.00019993,2]
[313759371,1707684642863,-250.0,0.00019993,2]
[313759372,1707684642873,-568.76264525,0.00019993,2]
[313759373,1707684642882,-570.21,0.00019993,2]
[313759374,1707684642891,-500.0,0.00019993,2]
[313759375,1707684642900,-31898.35862176,0.00019994,2]
[313759376,1707684642909,-234.739951,0.00019994,2]
[313759377,1707684642918,-234.739951,0.00019994,2]
[313759378,1707684642927,-508.97490738,0.00019995,2]
[313759379,1707684642936,-500.0,0.00019995,2]
[313759380,1707684642945,-500.0,0.00019995,2]
[313759381,1707684642953,-500.0,0.00019995,2]
[313759382,1707684642962,-523.22697595,0.00019995,2]
[313759383,1707684642972,-500.0,0.00019995,2]
[313759384,1707684642981,-500.0,0.00019995,2]
[313759386,1707684642990,-206.64248584,0.00019995,2]
[313759387,1707684642999,-500.0,0.00019995,2]
[313759389,1707684643008,-304.50759885,0.00019995,2]
[313759390,1707684643017,-500.0,0.00019995,2]
[313759391,1707684643026,-500.0,0.00019995,2]
[313759392,1707684643035,-500.0,0.00019995,2]
[313759393,1707684643044,-500.0,0.00019995,2]
[313759394,1707684643054,-500.0,0.00019995,2]
[313759395,1707684643063,-500.0,0.00019995,2]
[313759396,1707684643072,-500.0,0.00019995,2]
[313759397,1707684643081,-500.0,0.00019995,2]
[313759398,1707684643090,-500.0,0.00019995,2]
[313759399,1707684643099,-500.0,0.00019995,2]
[313759400,1707684643108,-500.0,0.00019995,2]
[313759401,1707684643117,-500.0,0.00019995,2]
[313759402,1707684643126,-186.60053159,0.00019995,2]
[313759403,1707684643136,-500.0,0.00019995,2]
[313759404,1707684643145,-500.0,0.00019995,2]
[313759405,1707684643155,-500.0,0.00019995,2]
[313759406,1707684643164,-500.0,0.00019995,2]
[313759407,1707684643173,-500.0,0.00019995,2]
[313759408,1707684643182,-500.0,0.00019995,2]
[313759409,1707684643191,-500.0,0.00019995,2]
[313759410,1707684643200,-500.0,0.00019995,2]
[313759411,1707684643209,-500.0,0.00019995,2]
[313759412,1707684643218,-500.0,0.00019995,2]
[313759413,1707684643227,-557.61721598,0.00019995,2]
[313759414,1707684643236,-548.10166296,0.00019995,2]
[313759415,1707684643245,-500.0,0.00019995,2]
[313759416,1707684643254,-500.0,0.00019995,2]
[313759417,1707684643263,-316.59904124,0.00019995,2]
[313759418,1707684643272,-500.0,0.00019995,2]
[313759419,1707684643281,-500.0,0.00019995,2]
[313759420,1707684643290,-500.0,0.00019995,2]
[313759421,1707684643299,-500.0,0.00019995,2]
[313759422,1707684643309,-500.0,0.00019995,2]
[313759423,1707684643318,-500.0,0.00019995,2]
[313759424,1707684643328,-605.34970272,0.00019995,2]
[313759425,1707684643337,-500.0,0.00019995,2]
[313759426,1707684643346,-500.0,0.00019995,2]
[313759427,1707684643356,-500.0,0.00019995,2]
[313759428,1707684643365,-500.0,0.00019995,2]
[313759429,1707684643374,-500.0,0.00019995,2]
[313759430,1707684643383,-636.96973133,0.00019995,2]
[313759431,1707684643393,-220.15210838,0.00019995,2]
[313759432,1707684643403,-506.42547301,0.00019995,2]
[313759433,1707684643412,-500.0,0.00019995,2]
[313759434,1707684643421,-500.0,0.00019995,2]
[313759435,1707684643430,-500.0,0.00019995,2]
[313759436,1707684643439,-500.0,0.00019995,2]
[313759437,1707684643448,-500.0,0.00019995,2]
[313759438,1707684643457,-500.0,0.00019995,2]
[313759440,1707684643467,-500.0,0.00019995,2]
[313759441,1707684643476,-500.0,0.00019995,2]